Cogmind - Beta 9.3 *** ADVENTURER MODE // 2019.12.31 @ 12:51:01 // Winter2019/RPGLIKE Player: ditdatdave Result: Self-destructed Performance ------------- Evolutions (1) 500 Regions Visited (3) 600 Robots Destroyed (22) 110 Value Destroyed (716) 716 Prototype IDs (1) 20 Alien Tech Used (0) 0 Bonus (0) 0 TOTAL SCORE: 1946 Bonus ------- None Cogmind --------- Core Integrity 206/900 Matter 289/300 Energy 500/500 System Corruption 2% Temperature Cool (0) Movement Walking (150) Ox1 Location -9/Storage Parts ------- > --- POWER (1) -------- F-cell Engine > --- PROPULSION (3) --- Aluminum Leg Aluminum Leg Improved Aluminum Leg > --- UTILITY (4) ------ Signal Interpreter Medium Armor Plating Drone Bay (0/2) Drone Bay (0/2) > --- WEAPON (2) ------- Medium Laser Assault Rifle > --- INVENTORY (4) ---- F-cell Engine Aluminum Leg Drone Bay (2/2) Grenade Launcher Peak State ------------ > --- POWER ------------ F-cell Engine > --- PROPULSION ------- Aluminum Leg Improved Aluminum Leg Compact Wheel > --- UTILITY ---------- Signal Interpreter Medium Armor Plating Drone Bay Drone Bay > --- WEAPON ----------- Medium Laser Assault Rifle > --- INVENTORY -------- F-cell Engine Compact Wheel Drone Bay Grenade Launcher [Rating: 26] Favorites ----------- Power Light Ion Engine Engine Light Ion Engine Propulsion Compact Wheel Leg Aluminum Leg Wheel Compact Wheel Utility Medium Armor Plating Device Heat Sink Processor Signal Interpreter Protection Medium Armor Plating Weapon Medium Laser Energy Gun Medium Laser Ballistic Gun Assault Rifle Launcher Grenade Launcher Build | -11 -10 -9 -9 ------- Run | Scr Mat Mat Sto Slots Evolved 6 | 4 . 1 1 Power . | . . . . Propulsion 2 | 2 . . . Utility 3 | 2 . 1 . Weapon 1 | . . . 1 Parts Attached 29 | 5 7 4 13 Power 3 | 1 . 1 1 Engine 3 | 1 . 1 1 Core . | . . . . Reactor . | . . . . Propulsion 6 | 2 . . 4 Treads . | . . . . Leg 4 | . . . 4 Wheel 2 | 2 . . . Hover . | . . . . Flight . | . . . . Utility 11 | . 4 1 6 Device 6 | . 1 1 4 Storage . | . . . . Processor 2 | . 2 . . Hackware . | . . . . Protection 3 | . 1 . 2 Artifact . | . . . . Weapon 9 | 2 3 2 2 Energy Gun 4 | 2 1 . 1 Energy Cannon . | . . . . Ballistic Gun 2 | . 1 1 . Ballistic Cannon . | . . . . Launcher 3 | . 1 1 1 Special Weapon . | . . . . Impact Weapon . | . . . . Slashing Weapon . | . . . . Piercing Weapon . | . . . . Special Melee Weapon . | . . . . Unidentified Prototypes 1 | . . . 1 Parts Lost 1 | . . . 1 Power . | . . . . Propulsion . | . . . . Utility 1 | . . . 1 Weapon . | . . . . Highest Loss Streak 1 | . . . 1 Average Slot Usage (%) 82 | . 62 85 95 Engine 10 | . 12 11 10 Leg 8 | . . . 18 Wheel 17 | . 25 23 9 Device 11 | . 4 14 15 Processor 8 | . 4 11 10 Protection 9 | . 3 11 12 Energy Gun 7 | . 9 . 8 Ballistic Gun 7 | . 2 11 10 Naked Turns . | . . . . Heaviest Build 35 | 5 13 16 35 Greatest Support 33 | 32 32 32 33 Greatest Overweight (x) 1 | . . . 1 Average Overweight (x) . | . . . . Largest Inventory Capacity 4 | 2 2 4 4 Average Capacity 2 | 1 2 2 4 Most Carried 4 | 1 2 2 4 Average Carried 2 | . 1 2 3 Final Capacity 4 | 2 2 4 4 Final Carried 4 | 1 2 2 4 Class Distribution -------------------- 65% | Mutant 21% | Skirmisher 13% | Scavenger-Skirmisher Dominant Class ---------------- Mutant | -10/Materials Mutant | -9/Materials Skirmisher | -9/Storage Resources | -11 -10 -9 -9 ----------- Run | Scr Mat Mat Sto Matter Collected 679 | 243 26 171 239 Remotely . | . . . . Salvage Created 783 | 115 35 221 412 Parts 51 | 2 3 10 36 Haulers Intercepted . | . . . . Recyclers Shooed 3 | . . 1 2 Parts Field Recycled . | . . . . Retrieved Matter . | . . . . Parts Self-Destructed . | . . . . Prevented . | . . . . Kills | -11 -10 -9 -9 ------- Run | Scr Mat Mat Sto Combat Hostiles Destroyed 18 | . 2 6 10 Guns 13 | . . 3 10 AOE 5 | . 2 3 . Classes Destroyed 7 | 2 1 2 2 Builder 1 | . . . 1 Tunneler 1 | 1 . . . Recycler 2 | 1 . . 1 Grunt 11 | . 2 4 5 Brawler 1 | . . 1 . Duelist 1 | . . . 1 Sentry 5 | . . 1 4 Best Kill Streak 3 | 1 2 3 3 Combat Bots Only 3 | . 2 3 3 Max Kills in Single Turn 1 | 1 1 1 1 Gunslinging . | . . . . Exploded 1 | . 1 1 . Melee . | . . . . Uniques/NPCs Destroyed . | . . . . Combat | -11 -10 -9 -9 -------- Run | Scr Mat Mat Sto Damage Taken 874 | 1 29 150 694 Core 694 | . 24 125 545 Absorbed by Shields . | . . . . Redirected to Core 560 | . 15 73 472 Core Remaining (%) 98 | 100 97 . . Volleys Fired 74 | 16 2 16 40 Largest 2 | 1 1 1 2 Hottest 70 | 50 30 30 70 Shots Fired 114 | 16 2 16 80 Gun 108 | 16 . 13 79 Cannon . | . . . . Launcher 6 | . 2 3 1 Special . | . . . . Kinetic 53 | . . 13 40 Thermal 51 | 12 . . 39 Explosive 6 | . 2 3 1 Electromagnetic 4 | 4 . . . Robot Hit Streak 21 | 9 . 21 19 Robot Miss Streak 1 | 1 . 1 1 Penetration Max . | . . . . Secondary Targets 3 | . . . 3 Max Gunslinging Chain 1 | . . . 1 Shots Hit Robots 100 | 13 . 15 72 Core Hits 44 | 4 4 11 25 Critical Hits . | . . . . Critical Kills . | . . . . Critical Parts Destroyed . | . . . . Melee Attacks . | . . . . Impact . | . . . . Slashing . | . . . . Piercing . | . . . . Sneak Attacks . | . . . . Combat Hostiles . | . . . . Follow-up Attacks . | . . . . Damage Inflicted 1399 | 168 90 302 839 Guns 1091 | 164 . 152 775 Cannons . | . . . . Explosions 252 | . 80 148 24 Melee . | . . . . Ramming 56 | 4 10 2 40 Kinetic 509 | . . 152 357 Thermal 569 | 151 . . 418 Explosive 252 | . 80 148 24 Electromagnetic 13 | 13 . . . Impact . | . . . . Slashing . | . . . . Piercing . | . . . . Highest Corruption 2 | . . . 2 Average Corruption 1 | . . . 1 Corruption Purged . | . . . . Effects 7 | . . . 7 Message Errors 5 | . . . 5 Heat Flow Errors 1 | . . . 1 Targeting Errors 1 | . . . 1 Overload Shots . | . . . . Overflow Damage . | . . . . Projectiles . | . . . . Explosions . | . . . . Melee . | . . . . Knockbacks 1 | . . . 1 Impact 1 | . . . 1 Kinetic . | . . . . Secondary . | . . . . Self-Inflicted Damage 37 | 1 4 13 19 Shots 3 | . . 2 1 Rammed 7 | 2 2 1 2 Targets Rammed 8 | 2 2 1 3 Kicked 1 | . . . 1 Crushed . | . . . . Highest Temperature 168 | 80 . . 168 Average Temperature 52 | 35 . . 55 Received Heat Transfer 311 | . 18 90 203 Siege Activations . | . . . . Robots Corrupted . | . . . . Combat Hostiles . | . . . . Parts Fried . | . . . . Impact Corruptions . | . . . . Robots Melted . | . . . . Combat Hostiles . | . . . . Parts Melted 1 | . . . 1 Heat Transferred 1702 | 444 . . 1258 Parts Sabotaged . | . . . . Parts Stolen . | . . . . Parts Stripped . | . . . . Power Chain Reactions . | . . . . Missiles Intercepted . | . . . . Alert | -11 -10 -9 -9 ------- Run | Scr Mat Mat Sto Peak Influence 229 | 10 45 195 229 Average Influence 86 | 4 21 132 153 Maximum Alert Level 1 | . . . 1 Low Security (%) 81 | 100 100 100 51 Level 1 18 | . . . 48 Level 2 . | . . . . Level 3 . | . . . . Level 4 . | . . . . Level 5 . | . . . . High Security . | . . . . Max Security . | . . . . Squads Dispatched 2 | . . 1 1 Investigation . | . . . . Extermination . | . . . . Reinforcement 2 | . . 1 1 Assault . | . . . . Garrison . | . . . . Intercept . | . . . . Construction Impeded . | . . . . Haulers Reinforced . | . . . . Stealth | -11 -10 -9 -9 --------- Run | Scr Mat Mat Sto Distress Signals . | . . . . Communications Jammed . | . . . . Distress Signals . | . . . . Times Spotted 25 | . 4 8 13 Peak Tracking Total 5 | . 2 3 5 Tactical Retreats 1 | . . . 1 Traps | -11 -10 -9 -9 ------- Run | Scr Mat Mat Sto Traps Triggered 4 | . 1 . 3 Indirectly . | . . . . Trap Hack Attempts . | . . . . Triggered . | . . . . Disarmed . | . . . . Reprogrammed . | . . . . Reused . | . . . . Traps Extracted . | . . . . Installed . | . . . . Triggered . | . . . . Machines | -11 -10 -9 -9 ---------- Run | Scr Mat Mat Sto Machines Disabled 1 | . . . 1 Max in Single Turn 1 | . . . 1 Machines Sabotaged . | . . . . Garrisons Compromised . | . . . . Overloaded Fab Kills . | . . . . Fab Network Shutdowns . | . . . . Hacking | -11 -10 -9 -9 --------- Run | Scr Mat Mat Sto Machines Accessed 2 | . . . 2 Terminals 2 | . . . 2 Fabricators . | . . . . Repair Stations . | . . . . Recycling Units . | . . . . Scanalyzers . | . . . . Garrison Access . | . . . . Total Hacks 4 | . . . 4 Successful 3 | . . . 3 Failed 1 | . . . 1 Catastrophic . | . . . . Database Lockouts . | . . . . Manual . | . . . . Terminals 4 | . . . 4 Fabricators . | . . . . Repair Stations . | . . . . Recycling Units . | . . . . Scanalyzers . | . . . . Garrison Access . | . . . . Terminal Hacks 3 | . . . 3 Open Door 1 | . . . 1 Locate Traps 1 | . . . 1 Zone Layout 1 | . . . 1 Fabricator Hacks . | . . . . Repair Station Hacks . | . . . . Recycling Unit Hacks . | . . . . Scanalyzer . | . . . . Garrison Access Hacks . | . . . . Unauthorized Hacks . | . . . . Terminals . | . . . . Fabricators . | . . . . Repair Stations . | . . . . Recycling Units . | . . . . Scanalyzers . | . . . . Garrison Access . | . . . . Data Cores Recovered . | . . . . Used . | . . . . Hacking Detections 2 | . . . 2 Full Trace Events . | . . . . Feedback Events . | . . . . Feedback Blocked . | . . . . Robot Schematics Acquired . | . . . . Robots Built . | . . . . Matter . | . . . . Time . | . . . . Total Robot Build Rating . | . . . . Part Schematics Acquired . | . . . . Parts Built . | . . . . Matter . | . . . . Time . | . . . . Total Part Build Rating . | . . . . Parts Repaired . | . . . . Time . | . . . . Parts Recycled . | . . . . Recycled Matter . | . . . . Retrieved Matter . | . . . . Retrieved Components . | . . . . Parts Scanalyzed . | . . . . Part Schematics Acquired . | . . . . Parts Damaged . | . . . . Bothacking | -11 -10 -9 -9 ------------ Run | Scr Mat Mat Sto Used RIF Installer . | . . . . Robots Hacked . | . . . . Non-combat . | . . . . Combat . | . . . . Robot Hacks Applied . | . . . . Relay Couplers Released . | . . . . Robots Rewired . | . . . . Allies Hacked . | . . . . Hacks Repelled . | . . . . Allies | -11 -10 -9 -9 -------- Run | Scr Mat Mat Sto Total Allies . | . . . . Largest Group . | . . . . Highest-Rated Group . | . . . . Highest-Rated Ally . | . . . . Total Orders 3 | . . . 3 EXPLORE 1 | . . . 1 RETURN 2 | . . . 2 Ally Attacks . | . . . . Total Damage . | . . . . Kills . | . . . . Allies Corrupted . | . . . . Allies Melted . | . . . . Intel | -11 -10 -9 -9 ------- Run | Scr Mat Mat Sto Robot Analysis Total . | . . . . Derelict Logs Recovered . | . . . . Drone Launches 8 | . . . 8 Drone Recoveries 4 | . . . 4 Exploration | -11 -10 -9 -9 ------------- Run | Scr Mat Mat Sto Turns Passed 1492 | 273 406 237 576 Spaces Moved 1128 | 232 388 198 310 Core 2 | 2 . . . Treads . | . . . . Legs 242 | . . . 242 Wheels 884 | 230 388 198 68 Hover . | . . . . Flight . | . . . . Fastest Speed 50 | 50 100 100 100 Average Speed 109 | 99 100 100 134 Slowest Speed 150 | 100 100 100 150 Overloaded Moves . | . . . . Propulsion Burnouts . | . . . . Robots Hopped . | . . . . Cave-ins Triggered . | . . . . Exploration Rate (%) 25 | 10 51 14 25 Regions Visited 3 Branch Regions 1 Pre-discovered Areas . | . . . . Known Exits Taken 2 | . 1 1 . Unknown Exits Taken 1 | 1 . . . Scrap Searched . | . . . . Spaces Dug . | . . . . Terrain Destroyed 48 | . 20 21 7 Melee . | . . . . Projectile . | . . . . AOE 48 | . 20 21 7 Actions | -11 -10 -9 -9 --------- Run | Scr Mat Mat Sto Total 1264 | 256 401 219 388 Wait 8 | . . . 8 Move 1125 | 231 387 197 310 Hop . | . . . . Pick Up 5 | 1 1 . 3 Fast Attach 21 | 4 5 2 10 Attach 1 | . . . 1 Detach 3 | . 1 . 2 Swap 7 | 1 2 2 2 Drop 12 | 1 1 1 9 Fire 74 | 16 2 16 40 Melee . | . . . . Ram 7 | 2 2 1 2 Kick 1 | . . . 1 Crush . | . . . . Escape Stasis . | . . . . Rewire . | . . . . Trap . | . . . . Miscellaneous . | . . . . Route ------- -11/Scrapyard -10/Materials (discovered 2 exits: *Mat x2) -9/Materials -9/Storage History --------- Turn | Location | Event 32 | -11/Scrapyard | Discovered new exit (range 15) 62 | -11/Scrapyard | Upgraded with Propulsion slot (x2) 62 | -11/Scrapyard | Upgraded with Utility slot (x2) 274 | -11/Scrapyard | Entered Materials 313 | -10/Materials | Build established: Mutant 473 | -10/Materials | Discovered new exit (range 5) 662 | -10/Materials | Discovered new exit (range 18) 678 | -10/Materials | Identified exit to Materials 680 | -10/Materials | Entered another Materials area 682 | -9/Materials | Reached level 2 682 | -9/Materials | Reached level 3 798 | -9/Materials | Discovered new exit (range 13) 818 | -9/Materials | Identified exit to Storage 825 | -9/Materials | Upgraded with Utility slot (x1) 917 | -9/Materials | Entered Storage 919 | -9/Storage | Reached level 4 937 | -9/Storage | Upgraded with Weapon slot (x1) 995 | -9/Storage | Reached level 5 1117 | -9/Storage | Core integrity fell below 50% 1493 | -9/Storage | Self-destructed Last Messages --------------- U-05 Engineer builds a Door. Drone destroyed. Acquired 10 matter. Acquired 9 matter. System corrupted: Med. Laser targeting data glitched. R-06 Scavenger collects Heat Sink. R-06 Scavenger collects Sml. Laser. # 9HWX2MHWD7Q932,ZE9 Kicked U-05 Engineer out of the way. U-05 Engineer knocked back. G-34 Mercenary destroyed. Dropped Com. Wheel. Acquired Aluminum Leg. U-05 Engineer builds a Door. R-06 Scavenger destroyed. U-05 Engineer destroyed. G-34 Mercenary destroyed. :S9K UFME,L|X>AH3TEDTHBZLBB&U Y-45 Defender destroyed. Acquired 71 matter. Map ----- +----------------------------------------------------+ | | | | | | | | | | | | | | | | | | | | | | | ???????????????????????????????????????????? | | ???????????????????????????????????????????? | | ?????????????????########################### | | ????????????###### | | ????????????#* + | | ????????????#**^ # % | | ????????????#**^ ### ###########+######+##+# | | ????????????######?# #????## ! % T ## | | ???????????????????# #????# ! " ## """ | | ??????????"######### #????## " # "Y" | | ??????????" ## #????## """ ## " " | | ??????????" ##+####### ## | | ??????????"#T### # ############ | | ????????######## #= """ ## # | | ????????#!!!!# + #@ """ ## ##/### | | ????????# # # """ T# """ """ # % | | ????????# !# # #= ## """ """ + | | ????????######T# #*!= """ ## """ """ # | | ????????????#### #% = """ ## # ## | | ???????????????# !+=!% """ ## # #? | | ???????????????# !#!=[ ## # #? | | ??????????????## x##################### #? | | ??????????????# |##### ########### #? | | ??????????????# !=%!= #? | | ??????????????# T=%% #? | | ??????????????# ##### ########### #? | | ??????????????######???## ##?????????# +? | | ????????????????????????# #??????????# #? | | ????????????????????????# ############ #? | | ????????????????????????# ## # +? | | ???????????????????????## ## # #? | | ??????????????????????????????????????? ?? | | ??????????????????????????????????????? ?? | | ???????????????????????????????????????????? | | ???????????????????????????????????????????? | | ???????????????????????????????????????????? | | ???????????????????????????????????????????? | | ???????????????????????????????????????????? | | ???????????????????????????????????????????? | +----------------------------------------------------+ Best States ------------- Heat Dissipation 35 Energy Generation 19 Energy Capacity 500 Matter Stores 300 Matter Capacity 300 Sight Range 19 Robot Scan Range 10 Terrain Scan Density 60 Heat Shielding 75 Armor Coverage 375 Resistance: KI 20 Resistance: TH 20 Resistance: EX 20 Resistance: EM 20 Resistance: I 20 Resistance: S 20 Resistance: P 20 Evasion (%) 40 Offensive Hacking 10 Item Schematics ----------------- None Robot Schematics ------------------ None Fabricated ------------ Nothing Alien Tech Used ----------------- None Achievements -------------- None Challenges ------------ None RPGLIKE | -11 -10 -9 -9 --------- Run | Scr Mat Mat Sto Levels Raised 4 | . . 2 2 XP Earned 11105 | 4000 200 4261 2644 XP Spent 8400 | 3975 . 2975 1450 Upgrades 24 | 13 . 5 6 Propulsion Slot 2 | 2 . . . Utility Slot 3 | 2 . 1 . Weapon Slot 1 | . . . 1 Core Integrity 6 | 5 . . 1 Inventory Capacity 4 | 2 . 2 . Sight Range 3 | 2 . . 1 Sensor Range 5 | . . 2 3 Protomatter Created 340 | . 41 74 225 Protomatter Decayed 234 | . 38 74 122 Game ------ Seed BiometalSeismicShielding Manual? 0 Play Time 00:19:01 Cumulative 288.0 hours Start 2019.12.18 @ 12:59:53 End 2019.12.31 @ 12:51:01 Sessions 3 Manual Loads 0 Difficulty Adventurer Special Mode Winter2019/RPGLIKE Game No. 77 Rogue 50 Adventurer 27 Explorer 0 Win Type - Total 0 Types 0/0/0/0/0/0/0 Lore% 15 Gallery% 32 Achievement% 22 Wizard Run 0 Options --------- ASCII 1 Keyboard 1 Movement Arrows Keybinds 0 Fullscreen 2 Font 32/Terminus Map View 63x52 Tactical HUD 0 Map Filters NONE Filters NONE Steam 1 RUN: fd495112-14ea-4216-adda-cb55e06955fa